bitfinex-derivatives/quotes_ETHF0:USTF0_20251009
["timestamp","ask_amount","ask_price","bid_price","bid_amount"]
[1759986247490,1.17777,4460.3,4460.2,0.0017369]
[1759986247690,1.17777,4460.3,4460.2,0.2257369]
[1759986247889,4.11786751,4460.3,4460.2,0.2257369]
[1759986250300,4.11786751,4460.3,4460.2,0.0017369]
[1759986250301,3.71439751,4460.3,4460.2,0.0017369]
[1759986250500,3.71439751,4460.3,4460.2,0.2257369]
[1759986251801,3.71439751,4460.3,4460.2,0.0017369]
[1759986252101,0.8945,4459.0,4458.9,0.6279]
[1759986252297,0.8945,4459.0,4458.9,0.8519]
[1759986252701,0.8945,4459.0,4458.9,1.0591]
[1759986253098,0.89734978,4459.0,4458.9,1.06150801]
[1759986253596,0.89734978,4459.0,4458.9,0.83750801]
[1759986253801,0.89734978,4459.0,4458.9,1.06150801]
[1759986254508,0.89734978,4459.0,4458.9,1.16660801]
[1759986254696,0.89734978,4459.0,4458.9,1.39060801]
[1759986255900,0.89734978,4459.0,4458.9,0.40600801]
[1759986256101,0.89734978,4459.0,4458.9,0.63000801]
[1759986256599,0.89734978,4459.0,4458.9,0.85430801]
[1759986258006,0.89734978,4459.0,4458.9,0.63000801]
[1759986258312,4.22899288,4459.0,4458.9,0.63000801]
[1759986259407,3.82540288,4459.0,4458.9,0.63000801]
[1759986259608,3.82540288,4459.0,4458.9,0.85430801]
[1759986260411,4.22899288,4459.0,4458.9,0.85430801]
[1759986262109,4.22899288,4459.0,4458.9,0.85530801]
[1759986262303,4.22899288,4459.0,4458.9,0.00240801]
[1759986262504,4.22899288,4459.0,4458.9,0.63100801]
[1759986263011,4.22899288,4459.0,4458.9,0.22740801]
[1759986263709,4.22899288,4459.0,4457.9,0.7606]
[1759986263710,0.5332,4458.0,4457.9,0.7606]
[1759986264012,0.5332,4458.0,4457.9,0.9856]
[1759986264610,0.5332,4458.0,4457.9,1.39157877]
[1759986267410,0.8945,4458.0,4457.9,2.58618812]
[1759986267915,3.78842935,4458.0,4457.9,0.45158877]
[1759986268210,3.78842935,4458.0,4457.9,0.63097877]
[1759986268413,3.78842935,4458.0,4457.9,0.85527877]
[1759986269708,4.19210935,4458.0,4457.9,0.22728877]
[1759986269908,4.19210935,4458.0,4457.9,0.85527877]
[1759986270109,4.19210935,4458.0,4457.9,1.16657877]
[1759986270110,3.78842935,4458.0,4457.9,1.16657877]
[1759986270314,3.78842935,4458.0,4457.9,1.39157877]
[1759986275114,0.97325,4458.5,4458.4,1.16425]
[1759986275317,0.97325,4458.5,4458.4,1.38925]
[1759986275519,3.93951141,4458.5,4458.4,1.38925]
[1759986275720,4.26441141,4458.5,4458.4,1.06015]
[1759986275914,3.86076141,4458.5,4458.4,1.38925]
[1759986277722,3.49946141,4458.5,4458.4,1.38925]
[1759986277922,2.96626141,4458.5,4458.4,1.38925]
[1759986278120,3.86076141,4458.5,4458.4,0.85295]
[1759986279328,4.26440141,4458.5,4458.4,0.85295]
[1759986280224,3.86076141,4458.5,4458.4,0.85295]
[1759986280831,4.26440141,4458.5,4458.4,0.85295]
[1759986281228,4.26440141,4458.5,4458.4,0.2243]
[1759986281528,4.26440141,4458.5,4458.4,0.225]
[1759986281722,4.26440141,4458.5,4458.4,0.62865]
[1759986284823,4.26440141,4458.5,4458.4,0.225]
[1759986285022,4.26440141,4458.5,4458.4,0.9914]
[1759986286323,4.26440141,4458.5,4458.4,1.39505]
[1759986286524,4.26440141,4458.5,4458.4,0.9914]
[1759986287926,4.26440141,4458.5,4458.4,0.225]
[1759986289030,1.17846,4458.2,4458.1,0.62567]
[1759986289227,1.17846,4458.2,4458.1,0.85067]
[1759986289935,1.17846,4458.2,4458.1,0.62567]
[1759986290124,1.17846,4458.2,4458.1,0.85067]
[1759986290828,0.52988,4458.0,4457.9,0.00228877]
[1759986291027,2.26421409,4458.0,4457.9,0.22728877]
[1759986291226,5.23477977,4458.0,4457.9,0.22728877]
[1759986292932,4.27524568,4458.0,4457.9,0.22728877]
[1759986300639,4.27524568,4458.0,4457.9,0.00228877]
[1759986300834,4.27524568,4458.0,4457.9,0.22728877]
[1759986303029,4.27524568,4458.0,4457.9,0.99528877]
[1759986303536,4.27524568,4458.0,4457.9,0.67518877]
[1759986304131,4.27524568,4458.0,4457.9,0.99528877]
[1759986305037,4.27524568,4458.0,4457.9,0.67518877]
[1759986305239,4.27524568,4458.0,4457.9,0.22728877]
[1759986306635,4.27524568,4458.0,4457.9,0.85297877]
[1759986306830,4.27524568,4458.0,4457.9,1.39897877]
[1759986307439,3.52386568,4458.0,4457.9,1.39897877]
[1759986307735,0.5533,4458.0,4457.9,1.39897877]
[1759986312740,0.5533,4458.0,4457.9,2.35851286]
[1759986314135,0.5533,4458.0,4457.9,1.39897877]
[1759986314636,0.7704,4458.0,4457.9,1.39897877]
[1759986315639,1.17408,4458.0,4457.9,1.39897877]
[1759986316541,0.7704,4458.0,4457.9,1.39897877]
[1759986318243,0.5592,4458.2,4458.1,0.4403]
[1759986318544,3.90853936,4458.2,4458.1,1.15297]
[1759986318741,4.12563936,4458.2,4458.1,1.15297]
[1759986320144,3.72197936,4458.2,4458.1,1.15297]
[1759986320543,3.72197936,4458.2,4458.1,2.11250409]
[1759986320742,3.50487936,4458.2,4458.1,2.11250409]
[1759986321242,3.90853936,4458.2,4458.1,2.11250409]
[1759986321539,0.5592,4458.2,4458.1,2.11250409]
[1759986321746,0.96285,4458.4,4458.3,0.7493]
[1759986321942,1.46076937,4458.4,4458.3,0.9743]
[1759986322143,4.32059909,4458.4,4458.3,0.9743]
[1759986322444,4.53769909,4458.4,4458.3,0.9743]
[1759986322845,4.53769909,4458.4,4458.3,1.37796]
[1759986323446,4.53769909,4458.4,4458.3,1.15296]
[1759986323648,4.53769909,4458.4,4458.3,1.37796]
[1759986324847,4.13404909,4458.4,4458.3,1.37796]
[1759986325047,3.63612972,4458.4,4458.3,1.37796]
[1759986326341,3.41902972,4458.4,4458.3,1.37796]
[1759986326546,0.57844978,4459.0,4458.9,0.2133]
[1759986326847,4.35426936,4459.0,4458.9,0.4383]
[1759986327048,4.68996936,4459.0,4458.9,0.4383]
[1759986331248,4.68996936,4459.0,4458.9,0.225]
[1759986331449,1.17997,4458.1,4458.0,0.2133]
[1759986331645,1.31258,4458.0,4457.8,0.4037]
[1759986331946,1.31258,4458.0,4457.9,0.44058877]
[1759986332151,1.31258,4458.0,4457.9,0.74958877]
[1759986332646,1.31258,4458.0,4457.9,0.97658877]
[1759986335043,1.31258,4458.0,4457.9,0.66758877]
[1759986335350,1.31258,4458.0,4457.9,0.97658877]
[1759986337045,1.17998,4458.0,4457.9,2.33981286]
[1759986337252,0.40368,4458.0,4457.9,2.33981286]
[1759986337844,0.96288,4458.0,4457.9,2.33981286]
[1759986338553,0.40368,4458.0,4457.9,2.33981286]
[1759986339245,0.94405,4458.4,4458.3,0.5361]
[1759986339450,0.94405,4458.4,4458.3,1.93823409]
[1759986339650,3.8489842,4458.4,4458.3,1.93823409]
[1759986339852,3.8489842,4458.4,4458.3,2.34189409]
[1759986340047,0.40364,4458.5,4458.4,0.83654]
[1759986340247,0.61043,4458.6,4458.5,0.7537]
[1759986340452,0.94403,4458.6,4458.5,0.7537]
[1759986340646,3.84201071,4458.6,4458.5,0.7537]
[1759986343153,4.05011071,4458.6,4458.5,0.4329]
[1759986343551,4.05011071,4458.6,4458.5,0.7543]
[1759986346057,4.05011071,4458.6,4457.9,0.21478877]
[1759986346058,0.96628,4458.0,4457.9,0.21478877]
[1759986346349,0.96628,4458.0,4457.9,0.63097877]
[1759986346754,1.29148,4458.0,4457.9,0.84347877]
[1759986349356,0.8878,4458.0,4457.9,1.05817877]
[1759986349560,0.5338,4458.2,4458.1,1.15227]
[1759986350159,0.93746,4458.2,4458.1,1.15227]
[1759986351460,0.5338,4458.2,4458.1,1.15227]
[1759986353265,0.93746,4458.2,4458.1,1.15227]
[1759986355662,1.16586,4458.2,4458.1,1.15227]
[1759986356058,1.16586,4458.2,4458.1,0.7486]
[1759986356963,1.16586,4458.2,4458.1,1.15227]
[1759986359260,0.7622,4458.2,4458.1,1.15227]
[1759986359662,1.16586,4458.2,4458.1,1.15227]
[1759986360158,0.3252,4458.3,4458.2,0.83086]
[1759986360360,0.3252,4458.3,4458.2,1.37726]
[1759986361167,0.93746,4458.3,4458.2,1.37726]
[1759986361461,0.5338,4458.3,4458.2,1.37726]
[1759986361660,0.93746,4458.3,4458.2,1.37726]
[1759986365065,0.5338,4458.3,4458.2,1.37726]
[1759986365266,0.61223,4458.6,4458.5,0.83083]
[1759986365466,1.16583,4458.6,4458.5,0.9736]
[1759986366770,1.16583,4458.6,4458.5,1.37724]
[1759986366971,1.16583,4458.6,4458.5,0.9736]
[1759986367271,1.43563844,4458.6,4458.5,1.50214]
[1759986368069,0.93743,4458.6,4458.5,1.50214]
[1759986368372,1.43566644,4458.6,4458.5,1.0985]
[1759986368578,1.43566644,4458.6,4458.5,0.9736]
[1759986370174,1.66406644,4458.6,4458.5,0.9736]
[1759986370574,1.66409259,4458.6,4458.5,0.9736]
[1759986371676,1.66409259,4458.6,4458.5,2.57280071]
[1759986371976,1.43569259,4458.6,4458.5,2.57280071]
[1759986373074,0.49826259,4458.6,4458.5,2.69810071]
[1759986373274,0.3132,4458.9,4458.8,1.15481]
[1759986373471,1.02118018,4458.9,4458.8,2.57537071]
[1759986373671,4.32033594,4458.9,4458.8,2.57537071]
[1759986374080,0.49818018,4458.9,4458.8,2.57537071]
[1759986374373,0.71963978,4459.0,4458.9,1.1548]
[1759986374579,0.00284978,4459.0,4458.9,1.1548]
[1759986377474,0.52584978,4459.0,4458.9,1.1548]
[1759986378385,0.00284978,4459.0,4458.9,1.1548]
[1759986378880,0.00284978,4459.0,4458.2,1.6075515]
[1759986378881,1.26673978,4459.0,4458.2,1.6075515]
[1759986379179,0.523,4458.6,4458.5,1.15484]
[1759986379378,0.523,4458.6,4458.5,1.37884]
[1759986381483,0.00284978,4459.0,4458.9,0.4245]
[1759986381679,0.00284978,4459.0,4458.9,2.57436071]
[1759986382681,0.40362,4458.7,4458.6,0.3267]
[1759986382874,0.419,4458.7,4458.6,0.211]
[1759986383070,0.419,4458.7,4458.6,0.224]
[1759986383071,4.08646728,4458.7,4458.6,0.224]
[1759986385175,4.08646728,4458.7,4458.6,0.435]
[1759986385771,4.08646728,4458.7,4458.6,0.7617]
[1759986386078,3.68284728,4458.7,4458.6,0.9752]
[1759986387083,0.7322,4458.7,4458.6,2.17076071]
[1759986390289,0.7322,4458.7,4458.6,0.224]
[1759986390976,0.7322,4458.7,4457.9,0.00228877]
[1759986390977,0.7322,4458.1,4457.9,0.00228877]
[1759986391176,1.13721,4458.5,4457.9,0.00228877]
[1759986391177,1.26398,4458.0,4457.9,0.00228877]
[1759986391385,4.21308673,4458.0,4457.9,0.22628877]
[1759986391578,1.26398,4458.0,4457.9,0.22628877]
[1759986391785,4.15714117,4458.0,4457.9,0.22628877]
[1759986392283,4.15714117,4458.0,4457.9,0.00228877]
[1759986392489,4.15714117,4458.0,4457.9,0.22628877]
[1759986395186,4.15714117,4458.0,4457.9,0.00228877]
[1759986395187,9.15714117,4458.0,4457.9,0.00228877]
[1759986396788,0.1281,4457.0,4456.7,0.3267]
[1759986396993,0.7322,4456.8,4456.7,0.211]
[1759986397291,0.7322,4456.8,4456.7,0.435]
[1759986397591,0.7322,4456.8,4456.7,0.8388]
[1759986397783,0.7322,4456.8,4456.7,0.84067996]
[1759986399692,0.7322,4456.8,4456.7,0.61667996]
[1759986399890,0.7322,4456.8,4456.7,0.84067996]
[1759986400796,0.7322,4456.8,4456.7,1.39647996]
[1759986402297,0.523,4456.8,4456.7,2.59204067]
[1759986403198,0.7323,4456.8,4456.7,2.18824067]
[1759986403995,0.7323,4456.8,4456.7,1.95280222]
[1759986404999,0.7323,4456.8,4456.7,2.35660222]
[1759986406899,1.13609,4456.8,4456.7,2.35660222]
[1759986407098,1.13609,4456.8,4456.7,0.65037996]
[1759986407297,1.13609,4456.8,4456.7,0.42637996]
[1759986407496,4.10157242,4456.8,4456.7,0.00187996]
[1759986407998,4.10157242,4456.8,4456.7,0.22687996]
[1759986409205,9.10157242,4456.8,4456.7,0.22687996]
[1759986409607,9.10157242,4456.8,4456.7,0.00187996]
[1759986409801,9.10157242,4456.8,4456.7,0.22687996]
[1759986410403,1.17067,4454.8,4454.7,0.2113]
[1759986410594,2.13079226,4454.8,4454.7,0.2113]
[1759986411199,2.13322757,4454.8,4454.7,0.21399582]
[1759986412412,2.13322757,4454.8,4454.7,0.00269582]
[1759986413099,5.02053232,4454.8,4454.7,0.22769582]
[1759986420199,4.06041006,4454.8,4454.7,1.38207582]
[1759986420904,0.00243531,4454.8,4454.7,1.38207582]
[1759986421304,0.32153531,4454.8,4454.7,1.38207582]
[1759986421504,0.54603531,4454.8,4454.7,1.38207582]
[1759986421803,1.17310531,4454.8,4454.7,1.38207582]
[1759986422003,0.76913531,4454.8,4454.7,0.97809582]
[1759986423008,1.17310531,4454.8,4454.7,0.97809582]
[1759986424315,1.17310531,4454.8,4454.7,1.38207582]
[1759986425010,0.76913531,4454.8,4454.7,1.38207582]
[1759986425216,0.00243531,4454.8,4454.7,1.38207582]
[1759986425912,0.00243531,4454.8,4454.7,0.97809582]
[1759986425913,0.72550531,4454.8,4454.7,0.97809582]
[1759986426119,0.95000531,4454.8,4454.7,1.38207582]
[1759986427711,1.17310531,4454.8,4454.7,0.97809582]
[1759986428713,1.17310531,4454.8,4454.7,0.43899582]
[1759986428910,1.17310531,4454.8,4454.7,0.22769582]
[1759986430014,1.17310531,4454.8,4454.7,0.63167582]
[1759986430516,1.17310531,4454.8,4454.7,0.85417582]
[1759986431015,1.17310531,4454.8,4454.7,1.41147582]
[1759986433115,1.17310531,4454.8,4454.7,1.07687582]
[1759986433815,1.17310531,4454.8,4454.7,1.41147582]
[1759986435120,1.17310531,4454.8,4454.7,1.07687582]
[1759986435315,1.17310531,4454.8,4454.7,0.00269582]
[1759986435519,5.09905396,4454.8,4454.7,0.00269582]
[1759986435714,5.09905396,4454.8,4454.7,0.22769582]
[1759986438306,5.60385989,4454.8,4454.7,0.22769582]
[1759986439114,5.60385989,4454.8,4454.7,0.00269582]
[1759986444720,5.60385989,4454.8,4453.5,2.09775226]
[1759986444721,1.01005,4454.3,4453.5,0.3346]
[1759986444925,1.19128,4453.6,4453.5,0.62659]
[1759986445130,1.19128,4453.6,4453.5,0.85159]
[1759986445623,1.19128,4453.6,4453.5,0.85442048]
[1759986446120,0.7872,4453.6,4453.5,0.85442048]
[1759986446422,0.7872,4453.6,4453.5,1.18902048]
[1759986446725,0.7872,4453.6,4453.5,1.41172048]
[1759986446930,1.19128,4453.6,4453.5,1.41172048]
[1759986448027,1.19128,4453.6,4453.5,1.07712048]
[1759986448427,1.19128,4453.6,4453.5,0.85442048]
[1759986451028,1.19128,4453.6,4453.5,1.18902048]
[1759986452219,0.7872,4453.6,4453.5,1.18902048]
[1759986452730,0.7872,4453.6,4453.5,0.85442048]
[1759986452934,0.7872,4453.6,4453.5,1.18902048]
[1759986455432,0.7872,4453.6,4453.5,1.41172048]
[1759986456426,0.7872,4453.6,4453.5,1.07712048]
[1759986456722,4.11503984,4453.6,4453.5,0.22783048]
[1759986457540,4.11503984,4453.6,4453.5,0.85442048]
[1759986457833,3.71095984,4453.6,4453.5,0.85442048]
[1759986458231,3.71095984,4453.6,4453.5,1.18902048]
[1759986459536,4.11503984,4453.6,4453.5,1.18902048]
[1759986459728,3.71095984,4453.6,4453.5,0.85442048]
[1759986460434,3.71095984,4453.6,4453.5,0.63192048]
[1759986460637,3.71095984,4453.6,4453.5,0.85582048]
[1759986461934,3.71095984,4453.6,4453.5,1.19782048]
[1759986462235,3.71095984,4453.6,4453.5,0.85582048]
[1759986462435,4.11503984,4453.6,4453.5,0.63192048]
[1759986462730,4.11503984,4453.6,4453.5,0.00283048]
[1759986463937,5.31365208,4453.6,4453.5,0.00283048]
[1759986465638,5.31365208,4453.6,4453.5,0.40692048]
[1759986467841,5.31365208,4453.6,4453.5,0.00283048]
[1759986468042,5.31365208,4453.6,4453.5,0.40692048]
[1759986468740,5.31365208,4453.6,4453.5,0.00283048]
[1759986470741,5.31365208,4453.6,4453.5,0.40692048]
[1759986475345,5.81871193,4453.6,4453.5,0.40692048]
[1759986476039,5.81871193,4453.6,4453.5,0.96182048]
[1759986476040,3.71095984,4453.6,4453.5,0.96182048]
[1759986476444,3.71095984,4453.6,4453.5,1.17682048]
[1759986481251,3.48335984,4453.6,4453.5,1.17682048]
[1759986482646,3.69945984,4453.6,4453.5,0.62702048]
[1759986482950,3.69945984,4453.6,4453.5,0.40692048]
[1759986483143,3.69945984,4453.6,4453.5,0.62702048]
[1759986483342,3.69945984,4453.6,4453.5,0.85202048]
[1759986484952,3.69945984,4453.6,4453.5,1.40182048]
[1759986485257,3.48335984,4453.6,4453.5,1.40182048]
[1759986485449,3.69945984,4453.6,4453.5,0.63192048]
[1759986486153,4.10353984,4453.6,4453.5,0.63192048]
[1759986487555,3.69945984,4453.6,4453.5,0.63192048]
[1759986488057,4.10353984,4453.6,4453.5,0.63192048]
[1759986488256,3.69945984,4453.6,4453.5,0.63192048]
[1759986489755,4.10353984,4453.6,4453.5,0.40692048]
[1759986489958,4.10353984,4453.6,4453.5,0.63192048]
[1759986492060,3.69945984,4453.6,4453.5,0.63192048]
[1759986492356,3.69945984,4453.6,4453.5,1.16172048]
[1759986492855,3.69945984,4453.6,4453.5,1.38032048]
[1759986493054,3.48335984,4453.6,4453.5,1.38032048]
[1759986493358,3.48335984,4453.6,4453.5,1.50772048]
[1759986493959,3.48335984,4453.6,4453.5,1.28272048]
[1759986494160,3.48335984,4453.6,4453.5,1.50772048]
[1759986495756,3.88743984,4453.6,4453.5,1.50772048]
[1759986496059,3.88743984,4453.6,4453.5,1.38032048]
[1759986496763,3.48335984,4453.6,4453.5,1.38032048]
[1759986496957,3.88743984,4453.6,4453.5,1.38032048]
[1759986497765,4.10103984,4453.6,4453.5,0.43943048]
[1759986499163,4.60594904,4453.6,4453.5,0.84352048]
[1759986500565,4.20186904,4453.6,4453.5,0.84352048]
[1759986500758,4.60594904,4453.6,4453.5,0.84352048]
[1759986500959,4.10103984,4453.6,4453.5,0.84352048]
[1759986501263,4.60598834,4453.6,4453.5,0.43943048]
[1759986501462,4.60598834,4453.6,4453.5,0.84352048]
[1759986503460,4.20190834,4453.6,4453.5,1.06212048]
[1759986503660,3.69695984,4453.6,4453.5,1.38032048]
[1759986504461,4.10103984,4453.6,4453.5,1.38032048]
[1759986505966,4.10103984,4453.6,4453.5,1.15532048]
[1759986506167,4.10103984,4453.6,4453.5,1.38032048]
[1759986507670,4.10103984,4453.6,4453.5,0.97623048]
[1759986507972,4.10103984,4453.6,4453.5,0.65803048]
[1759986507973,4.60600001,4453.6,4453.5,0.65803048]
[1759986510468,4.60600001,4453.6,4453.5,1.06212048]
[1759986510666,4.60600001,4453.6,4453.5,1.38032048]
[1759986511073,4.60600001,4453.6,4453.5,0.43943048]
[1759986511273,4.60600001,4453.6,4453.5,0.22783048]
[1759986513580,4.60600001,4453.6,4453.5,0.43943048]
[1759986514376,4.60600001,4453.6,4453.5,0.84352048]
[1759986515476,4.10103984,4453.6,4453.5,0.84352048]
[1759986515678,4.10103984,4453.6,4453.5,1.16172048]
[1759986515865,4.60584939,4453.6,4453.5,1.16172048]
[1759986516475,4.60584939,4453.6,4453.5,0.75763048]
[1759986517076,4.60584939,4453.6,4453.5,0.43943048]
[1759986517874,4.60584939,4453.6,4453.5,0.97623048]
[1759986519575,4.60584939,4453.6,4453.5,0.00283048]
[1759986519779,4.60584939,4453.6,4453.5,0.22783048]
[1759986522178,5.80446163,4453.6,4453.5,0.22783048]
[1759986525977,5.56769586,4453.6,4453.5,0.22783048]
[1759986535477,1.31014,4453.0,4452.9,0.02245753]
[1759986535676,2.27198647,4453.0,4452.9,0.02245753]
[1759986535880,5.17404784,4453.0,4452.9,0.02245753]
[1759986536687,5.17404784,4453.0,4452.9,0.02429242]
[1759986541586,5.68022432,4453.0,4452.9,0.02429242]
[1759986543186,5.17404784,4453.0,4452.9,0.02429242]
[1759986545697,3.80806137,4453.0,4452.9,2.13937889]
[1759986545890,4.21220137,4453.0,4452.9,2.13937889]
[1759986546997,4.21220137,4453.0,4452.9,1.17753242]
[1759986550100,3.80806137,4453.0,4452.9,1.17753242]
[1759986551096,0.7744,4453.0,4452.9,1.17753242]
[1759986551290,0.5463,4453.0,4452.9,2.13937889]
[1759986555002,0.5463,4453.0,4452.9,1.17753242]
[1759986557097,0.5463,4453.0,4452.9,1.40253242]
[1759986559806,0.95044,4453.0,4452.9,0.99839242]
[1759986560001,1.30684,4453.0,4452.9,0.68139242]
[1759986560200,1.30684,4453.0,4452.9,1.08553242]
[1759986563402,1.30684,4453.0,4452.9,1.39573242]
[1759986565109,1.30684,4453.0,4452.9,0.86363242]
[1759986565407,1.30684,4453.0,4452.9,0.65343242]
[1759986569811,4.28152055,4453.0,4452.9,0.65343242]
[1759986573209,3.87738055,4453.0,4452.9,1.18273242]
[1759986573403,4.28152055,4453.0,4452.9,1.18273242]
[1759986574714,4.28152055,4453.0,4452.9,0.87253242]
[1759986575213,4.28152055,4453.0,4452.9,0.65343242]
[1759986576214,3.87738055,4453.0,4452.9,0.87253242]
[1759986576415,3.87738055,4453.0,4452.9,1.18273242]
[1759986576824,4.28152055,4453.0,4452.9,1.18273242]
[1759986577419,4.28152055,4453.0,4452.9,0.65343242]
[1759986577614,4.28152055,4453.0,4452.9,0.24929242]
[1759986577615,4.78737826,4453.0,4452.9,0.24929242]
[1759986578214,4.78737826,4453.0,4452.9,0.65343242]
[1759986578416,4.78737826,4453.0,4452.9,0.87253242]
[1759986580620,4.38323826,4453.0,4452.9,0.87253242]
[1759986580820,4.78737826,4453.0,4452.9,0.87253242]
[1759986581029,4.38323826,4453.0,4452.9,0.87253242]
[1759986581521,4.78737826,4453.0,4452.9,0.87253242]
[1759986589522,4.28152055,4453.0,4452.9,0.87253242]
[1759986589723,4.78744859,4453.0,4452.9,0.87253242]
[1759986593825,4.78744859,4453.0,4452.9,0.65343242]
[1759986596526,4.78744859,4453.0,4452.9,0.86463242]
[1759986596825,4.78744859,4453.0,4452.9,0.24929242]
[1759986597015,4.78744859,4453.0,4452.9,0.65343242]
[1759986599529,4.78744859,4453.0,4452.9,0.24929242]
[1759986601334,4.78744859,4453.0,4452.9,0.65343242]
[1759986601532,4.78744859,4453.0,4452.9,0.24929242]
[1759986607734,4.78744859,4453.0,4452.9,0.65343242]
[1759986608731,4.38330859,4453.0,4452.9,0.86363242]
[1759986608937,3.74228055,4453.0,4452.9,1.40913242]
[1759986609236,0.7676,4453.0,4452.9,1.40913242]
[1759986610244,1.17174,4453.0,4452.9,1.40913242]
[1759986614045,0.95044,4453.0,4452.9,1.40913242]
[1759986615442,0.5463,4453.0,4452.9,1.40913242]
[1759986615644,1.28594,4453.0,4452.9,1.08463242]
[1759986615942,1.28594,4453.0,4452.9,1.40913242]
[1759986619844,1.16094,4453.0,4452.9,1.40913242]
[1759986620946,1.28594,4453.0,4452.9,1.40913242]
[1759986621154,1.28594,4453.0,4452.9,1.00499242]
[1759986621338,1.28594,4453.0,4452.9,0.24929242]
[1759986621947,1.28594,4453.0,4452.9,0.23449242]
[1759986622246,1.79338279,4453.0,4452.9,0.45949242]
[1759986623844,1.79338279,4453.0,4452.9,0.24929242]
[1759986624944,1.79338279,4453.0,4452.9,0.45949242]
[1759986628058,1.79338279,4453.0,4452.9,1.00499242]
[1759986629160,1.79338279,4453.0,4452.9,0.68049242]
[1759986632864,1.79338279,4453.0,4452.9,0.45549242]
[1759986633064,1.79338279,4453.0,4452.9,0.68049242]
[1759986634766,1.79338279,4453.0,4452.9,0.45949242]
[1759986639366,1.79338279,4453.0,4452.9,0.99929242]
[1759986643776,1.66838279,4453.0,4452.9,0.99929242]
[1759986646982,1.79898279,4453.0,4452.9,0.99929242]
[1759986650080,1.79898279,4453.0,4452.9,0.45949242]
[1759986652584,1.79898279,4453.0,4452.9,0.02429242]
[1759986652881,4.77709482,4453.0,4452.9,0.24929242]
[1759986657182,4.77709482,4453.0,4452.9,0.45649242]
[1759986657788,4.77709482,4453.0,4452.9,0.77729242]
[1759986658196,4.77709482,4453.0,4452.9,0.55229242]
[1759986658486,4.77709482,4453.0,4452.9,0.77729242]
[1759986659189,4.77709482,4453.0,4452.9,0.45649242]
[1759986662695,4.77709482,4453.0,4452.9,0.24929242]
[1759986664096,4.77709482,4453.0,4452.9,0.02429242]
[1759986664395,4.77709482,4453.0,4452.9,0.24929242]
[1759986668300,5.73898171,4453.0,4452.9,0.02429242]
[1759986668599,5.73898171,4453.0,4451.5,1.13807]
[1759986668600,1.32133,4452.0,4451.9,1.6075515]
[1759986668793,1.32133,4452.0,4451.9,0.225]
[1759986668794,2.28321689,4452.0,4451.9,0.225]
[1759986669596,0.7865,4452.0,4451.9,1.39484379]
[1759986669797,0.2116,4452.7,4452.6,0.45]
[1759986669987,0.61576,4452.7,4452.6,0.9881]
[1759986670393,1.14896,4452.7,4452.6,1.39227]
[1759986675398,0.4216,4452.2,4452.1,0.2252]
[1759986675600,0.4216,4452.2,4452.1,0.62922]
[1759986675601,1.14901,4452.2,4452.1,0.62922]
[1759986675800,1.14901,4452.2,4452.1,0.85442]
[1759986676805,1.14901,4452.2,4452.1,1.16752]
[1759986678503,1.14901,4452.2,4452.1,0.85442]
[1759986679005,1.14901,4452.2,4452.1,1.16752]
[1759986679301,1.14901,4452.2,4452.1,1.39232]
[1759986682707,1.14901,4452.2,4452.1,0.225]
[1759986682708,5.0598054,4452.2,4452.1,0.225]
[1759986682909,5.56750468,4452.2,4452.1,0.225]
[1759986685306,5.0598054,4452.2,4452.1,0.225]
[1759986692011,0.96073,4452.0,4451.9,0.00250379]
[1759986692307,0.96073,4452.0,4451.9,0.22750379]
[1759986692308,4.17377277,4452.0,4451.9,0.22750379]
[1759986700919,4.17377277,4452.0,4451.9,0.66530379]
[1759986701118,4.17377277,4452.0,4451.9,0.45270379]
[1759986701714,4.17377277,4452.0,4451.9,0.76370379]
[1759986701911,4.17377277,4452.0,4451.9,1.38054379]
[1759986704522,4.17377277,4452.0,4451.9,0.97630379]
[1759986704723,4.03887277,4452.0,4451.9,0.97630379]
[1759986713830,4.03887277,4452.0,4451.9,1.38054379]
[1759986715331,4.17547277,4452.0,4451.9,0.22750379]
[1759986715729,0.93903,4452.0,4451.9,1.38804379]
[1759986723536,1.15013,4452.0,4451.9,0.98380379]
[1759986723834,1.15013,4452.0,4451.9,1.38804379]
[1759986724133,1.15013,4452.0,4451.9,0.63174379]
[1759986724337,1.28673,4452.0,4451.9,0.22750379]
[1759986724739,0.73353,4452.0,4451.9,1.38804379]
[1759986725532,0.95293,4452.0,4451.9,0.98380379]
[1759986726841,1.16403,4452.0,4451.9,0.98380379]
[1759986728244,0.40422,4452.1,4452.0,0.40423]
[1759986728447,0.7335,4452.3,4452.2,1.16051]
[1759986728649,1.24180459,4452.3,4452.2,1.16051]
[1759986728845,0.3293,4452.3,4452.2,1.16051]
[1759986729045,0.7335,4452.3,4452.2,1.16051]
[1759986729765,0.4042,4452.3,4452.2,1.16051]
[1759986729948,0.721,4452.3,4452.2,1.16051]
[1759986730152,0.721,4452.3,4451.9,0.22750379]
[1759986730153,0.8755,4452.0,4451.9,0.22750379]
[1759986731048,1.27973,4452.0,4451.9,0.44060379]
[1759986732347,1.27973,4452.0,4451.9,0.78250379]
[1759986734655,1.27973,4452.0,4451.9,0.55750379]
[1759986734847,1.27973,4452.0,4451.9,0.78250379]
[1759986736351,1.27973,4452.0,4451.9,0.55750379]
[1759986736556,1.27973,4452.0,4451.9,0.78250379]
[1759986736952,1.27973,4452.0,4451.9,1.18674379]
[1759986738052,1.27973,4452.0,4451.9,0.96174379]
[1759986738262,1.27973,4452.0,4451.9,1.40684379]
[1759986738660,1.27973,4452.0,4451.9,1.18184379]
[1759986738854,1.27973,4452.0,4451.9,1.40684379]
[1759986740157,1.27973,4452.0,4451.9,1.00260379]
[1759986740357,1.27973,4452.0,4451.9,1.40684379]
[1759986741852,1.27973,4452.0,4451.9,1.00260379]
[1759986743459,1.27973,4452.0,4451.9,0.00250379]
[1759986743648,1.27973,4452.0,4451.9,0.22750379]
[1759986746464,4.73963,4451.8,4450.9,2.01715418]
[1759986746656,1.01101,4450.1,4449.6,1.93004655]
[1759986746958,1.01101,4450.1,4448.5,0.1242]
[1759986746959,0.40452,4448.8,4448.5,0.5574]
[1759986747260,1.21085092,4449.8,4448.5,0.5574]
[1759986747261,3.596744,4448.7,4448.6,0.5692]
[1759986747454,2.85040845,4448.7,4448.6,0.57148933]
[1759986747663,0.00269774,4448.7,4448.6,3.36354191]
[1759986748859,0.00269774,4448.7,4448.6,3.70544191]
[1759986761369,0.40722774,4448.7,4448.6,3.70544191]
[1759986762271,0.00269774,4448.7,4448.6,4.10998191]
[1759986762463,0.40722774,4448.7,4448.6,1.31792933]
[1759986765268,0.00269774,4448.7,4448.6,1.31792933]